bitfinex-derivatives/quotes_ETHF0:USTF0_20260119
["timestamp","ask_amount","ask_price","bid_price","bid_amount"]
[1768845275961,0.1327848,3220.6,3219.5,0.15538]
[1768845276161,0.91176881,3220.5,3219.5,0.15538]
[1768845276357,0.91176881,3220.4,3219.5,0.15538]
[1768845276566,0.13037664,3220.3,3219.5,0.15538]
[1768845296393,0.91290167,3220.2,3219.5,0.15538]
[1768845296586,0.13037664,3220.3,3219.5,0.15538]
[1768845296787,0.91290331,3220.2,3219.5,0.15538]
[1768845296989,0.13037664,3220.3,3219.5,0.15538]
[1768845297289,0.91290254,3220.2,3219.5,0.15538]
[1768845297590,0.13037664,3220.3,3219.5,0.15538]
[1768845297790,0.91290087,3220.2,3219.5,0.15538]
[1768845297991,0.13037664,3220.3,3219.5,0.15538]
[1768845298288,0.91289478,3220.2,3219.5,0.15538]
[1768845298492,0.13037664,3220.3,3219.5,0.15538]
[1768845298686,0.91289329,3220.2,3219.5,0.15538]
[1768845298986,0.13037664,3220.3,3219.5,0.15538]
[1768845299190,0.91289519,3220.2,3219.5,0.15538]
[1768845299492,0.13037664,3220.3,3219.5,0.15538]
[1768845301994,0.13589626,3220.7,3219.5,0.15538]
[1768845302196,1.24063608,3220.6,3219.5,0.15538]
[1768845302393,0.91282672,3220.5,3219.5,0.15538]
[1768845302693,0.91282672,3220.4,3219.5,0.15538]
[1768845302897,0.91282672,3220.3,3219.5,0.15538]
[1768845303090,0.13589626,3220.6,3219.5,0.15538]
[1768845303291,0.91282961,3220.5,3219.5,0.15538]
[1768845303491,0.91282961,3220.4,3219.5,0.15538]
[1768845303692,0.91282961,3220.3,3219.5,0.15538]
[1768845303998,0.13589626,3220.6,3219.5,0.15538]
[1768845304199,0.91275456,3220.5,3219.5,0.15538]
[1768845304395,0.91275456,3220.4,3219.5,0.15538]
[1768845304598,0.91275456,3220.3,3219.5,0.15538]
[1768845304900,0.91269311,3220.2,3219.5,0.15538]
[1768845305199,0.13589626,3220.6,3219.5,0.15538]
[1768845305403,1.04860724,3220.5,3219.5,0.15538]
[1768845305592,0.91271098,3220.4,3219.5,0.15538]
[1768845305793,0.91271098,3220.3,3219.5,0.15538]
[1768845306087,0.91271098,3220.2,3219.5,0.15538]
[1768845306290,0.13589626,3220.5,3219.5,0.15538]
[1768845306495,0.91270484,3220.4,3219.5,0.15538]
[1768845306687,0.91270484,3220.3,3219.5,0.15538]
[1768845306896,0.91270484,3220.2,3219.5,0.15538]
[1768845307097,0.13589626,3220.5,3219.5,0.15538]
[1768845307396,0.91270678,3220.4,3219.5,0.15538]
[1768845307597,0.91270678,3220.3,3219.5,0.15538]
[1768845307798,0.91270678,3220.2,3219.5,0.15538]
[1768845308098,0.13589626,3220.5,3219.5,0.15538]
[1768845308300,0.91270763,3220.4,3219.5,0.15538]
[1768845308501,0.91270763,3220.3,3219.5,0.15538]
[1768845308696,0.91272842,3220.2,3219.5,0.15538]
[1768845309003,1.42320126,3220.5,3219.5,0.15538]
[1768845309305,0.91266982,3220.4,3219.5,0.15538]
[1768845309600,0.91266982,3220.3,3219.5,0.15538]
[1768845309801,1.42320126,3220.5,3219.5,0.15538]
[1768845309998,0.91266623,3220.4,3219.5,0.15538]
[1768845310201,0.91266623,3220.3,3219.5,0.15538]
[1768845310398,1.42320126,3220.5,3219.5,0.15538]
[1768845310591,0.91267474,3220.4,3219.5,0.15538]
[1768845310797,0.91267474,3220.3,3219.5,0.15538]
[1768845310995,1.42320126,3220.5,3219.5,0.15538]
[1768845311196,0.91267435,3220.4,3219.5,0.15538]
[1768845311402,0.91267435,3220.3,3219.5,0.15538]
[1768845311601,1.42320126,3220.5,3219.5,0.15538]
[1768845311805,0.91268481,3220.4,3219.5,0.15538]
[1768845311996,0.91268481,3220.3,3219.5,0.15538]
[1768845312198,0.91269597,3220.2,3219.5,0.15538]
[1768845312398,1.42320126,3220.5,3219.5,0.15538]
[1768845312599,0.91269867,3220.4,3219.5,0.15538]
[1768845312806,0.91269867,3220.3,3219.5,0.15538]
[1768845313007,1.42320126,3220.5,3219.5,0.15538]
[1768845313206,0.91269783,3220.4,3219.5,0.15538]
[1768845313408,1.42320126,3220.5,3219.5,0.15538]
[1768845313409,0.91269783,3220.3,3219.5,0.15538]
[1768845313609,1.42320126,3220.5,3219.5,0.15538]
[1768845313806,0.91269834,3220.4,3219.5,0.15538]
[1768845314006,0.91269834,3220.3,3219.5,0.15538]
[1768845314199,1.42320126,3220.5,3219.5,0.15538]
[1768845314401,0.91272486,3220.4,3219.5,0.15538]
[1768845314600,0.91272486,3220.3,3219.5,0.15538]
[1768845314800,1.42320126,3220.5,3219.5,0.15538]
[1768845315007,0.91275398,3220.4,3219.5,0.15538]
[1768845315206,0.91275398,3220.3,3219.5,0.15538]
[1768845315406,0.91275398,3220.2,3219.5,0.15538]
[1768845315608,1.42320126,3220.5,3219.5,0.15538]
[1768845315808,0.9127557,3220.4,3219.5,0.15538]
[1768845316009,0.9127557,3220.3,3219.5,0.15538]
[1768845316205,0.9127557,3220.2,3219.5,0.15538]
[1768845316405,1.42320126,3220.5,3219.5,0.15538]
[1768845316705,0.91275746,3220.4,3219.5,0.15538]
[1768845317004,0.91275746,3220.3,3219.5,0.15538]
[1768845317205,0.91275746,3220.2,3219.5,0.15538]
[1768845317406,1.42320126,3220.5,3219.5,0.15538]
[1768845317702,0.9127669,3220.4,3219.5,0.15538]
[1768845317897,0.9127669,3220.3,3219.5,0.15538]
[1768845318111,0.9127669,3220.2,3219.5,0.15538]
[1768845318310,1.42320126,3220.5,3219.5,0.15538]
[1768845318523,0.9127632,3220.4,3219.5,0.15538]
[1768845318811,0.9127632,3220.3,3219.5,0.15538]
[1768845319011,0.9127632,3220.2,3219.5,0.15538]
[1768845319211,0.13589626,3220.4,3219.5,0.15538]
[1768845319511,0.91266548,3220.3,3219.5,0.15538]
[1768845319712,0.91266548,3220.2,3219.5,0.15538]
[1768845319912,0.13589626,3220.7,3219.5,0.15538]
[1768845320114,1.24046017,3220.6,3219.5,0.15538]
[1768845320310,0.91266038,3220.5,3219.5,0.15538]
[1768845320510,0.91266038,3220.4,3219.5,0.15538]
[1768845320709,0.91266038,3220.3,3219.5,0.15538]
[1768845320911,0.13589626,3220.6,3219.5,0.15538]
[1768845321118,0.91280528,3220.5,3219.5,0.15538]
[1768845321416,0.91280528,3220.4,3219.5,1.442685]
[1768845321617,0.91280528,3220.3,3219.5,1.442685]
[1768845321818,1.67864719,3220.8,3219.5,1.442685]
[1768845322008,1.24068385,3220.7,3219.5,1.442685]
[1768845322210,1.24068385,3220.6,3219.5,1.442685]
[1768845322410,0.91282631,3220.5,3219.5,1.442685]
[1768845322610,0.91282631,3220.4,3219.5,1.442685]
[1768845322815,0.91282631,3220.3,3219.5,1.442685]
[1768845323017,1.81116694,3220.8,3219.5,1.442685]
[1768845323318,1.24032003,3220.7,3219.5,1.442685]
[1768845323518,1.24032003,3220.6,3219.5,1.442685]
[1768845323819,0.91255467,3220.5,3219.5,1.442685]
[1768845324018,0.91255467,3220.4,3219.5,1.442685]
[1768845324321,0.91255467,3220.3,3219.5,1.442685]
[1768845324514,0.13589924,3220.8,3219.5,1.442685]
[1768845324715,0.3277439,3220.7,3219.5,1.442685]
[1768845325016,1.24025498,3220.6,3219.5,1.442685]
[1768845325314,0.91251108,3220.5,3219.5,1.442685]
[1768845325613,0.91251108,3220.4,3219.5,1.442685]
[1768845325812,0.91251108,3220.3,3219.5,1.442685]
[1768845326012,1.42320424,3220.8,3219.5,1.442685]
[1768845326213,0.9124792,3220.7,3219.5,1.442685]
[1768845326416,1.24021205,3220.6,3219.5,1.442685]
[1768845326615,0.9124792,3220.5,3219.5,1.442685]
[1768845326808,0.9124792,3220.4,3219.5,1.442685]
[1768845327018,0.9124792,3220.3,3219.5,1.442685]
[1768845327323,0.13589924,3220.8,3219.5,1.442685]
[1768845327524,1.2401991,3220.7,3219.7,1.287305]
[1768845327820,0.91246438,3220.6,3219.7,1.287305]
[1768845328023,0.91246438,3220.5,3219.7,42.087305]
[1768845328321,0.91246438,3220.4,3219.7,42.087305]
[1768845328523,0.00337949,3220.8,3219.7,1.287305]
[1768845328725,1.24014107,3220.7,3219.7,1.287305]
[1768845328922,0.91240342,3220.6,3219.7,1.287305]
[1768845329116,0.91240342,3220.5,3219.7,1.287305]
[1768845329426,0.91240342,3220.4,3219.7,1.287305]
[1768845329623,0.00337949,3220.8,3219.7,1.287305]
[1768845329824,1.24002694,3220.7,3219.7,1.287305]
[1768845330126,0.91234561,3220.6,3219.7,1.287305]
[1768845330326,0.00337949,3220.8,3219.7,1.287305]
[1768845330526,0.9122297,3220.7,3219.7,1.442675]
[1768845330824,0.9122297,3220.6,3219.7,1.442675]
[1768845331023,0.00337949,3220.8,3219.7,1.442675]
[1768845331225,0.91223167,3220.7,3219.7,1.442675]
[1768845331427,0.91223167,3220.6,3219.7,1.442675]
[1768845331723,0.00337949,3220.8,3219.7,1.442675]
[1768845331916,0.9121097,3220.7,3219.7,1.442675]
[1768845332116,0.9121097,3220.6,3219.7,1.442675]
[1768845332318,0.00337949,3220.8,3219.7,1.442675]
[1768845332518,0.91201577,3220.7,3219.7,1.442675]
[1768845332719,0.91201577,3220.6,3219.7,1.442675]
[1768845332925,0.00337949,3220.8,3219.7,0.15537]
[1768845333119,0.9120163,3220.7,3219.7,0.15537]
[1768845333321,0.9120163,3220.6,3219.7,0.15537]
[1768845333525,0.00337949,3220.8,3219.7,0.15537]
[1768845333717,0.91194117,3220.7,3219.7,0.15537]
[1768845334022,0.91194117,3220.6,3219.7,0.15537]
[1768845334227,0.00337949,3220.8,3219.7,0.15537]
[1768845334429,0.91187861,3220.7,3219.7,0.15537]
[1768845334729,0.91187861,3220.6,3219.7,0.15537]
[1768845334919,0.00337949,3220.8,3219.7,0.15537]
[1768845335119,0.9118792,3220.7,3219.7,0.15537]
[1768845335319,0.9118792,3220.6,3219.7,0.15537]
[1768845335521,0.00337949,3220.8,3219.7,0.15537]
[1768845335727,0.91182458,3220.7,3219.7,0.15537]
[1768845335921,0.91182458,3220.6,3219.7,0.15537]
[1768845336122,0.00337949,3220.8,3219.7,0.15537]
[1768845336321,0.91178862,3220.7,3219.7,0.15537]
[1768845336524,0.91178862,3220.6,3219.7,0.15537]
[1768845336820,0.00337949,3220.8,3219.7,0.15537]
[1768845337020,0.91178718,3220.7,3219.7,0.15537]
[1768845337222,0.91178718,3220.6,3219.7,0.15537]
[1768845337424,0.00337949,3220.8,3219.7,0.15537]
[1768845337619,0.91175799,3220.7,3219.7,0.15537]
[1768845337819,0.91175799,3220.6,3219.7,0.15537]
[1768845338019,0.00337949,3220.8,3219.7,0.15537]
[1768845338219,0.9117337,3220.7,3219.7,0.15537]
[1768845338423,0.9117337,3220.6,3219.7,0.15537]
[1768845338623,0.00337949,3220.8,3219.7,0.15537]
[1768845338824,0.9117343,3220.7,3219.7,0.15537]
[1768845339022,0.9117343,3220.6,3219.7,0.15537]
[1768845339224,0.00337949,3220.8,3219.7,0.15537]
[1768845339423,0.91171411,3220.7,3219.7,0.15537]
[1768845339623,0.91171411,3220.6,3219.7,0.15537]
[1768845339826,0.00337949,3220.8,3219.7,0.15537]
[1768845340019,0.91169965,3220.7,3219.7,0.15537]
[1768845340224,0.91169965,3220.6,3219.7,0.15537]
[1768845340419,0.00337949,3220.8,3219.7,0.15537]
[1768845340624,0.91157656,3220.7,3219.7,0.15537]
[1768845340827,0.91157656,3220.6,3219.7,0.15537]
[1768845341019,0.00337949,3220.8,3219.7,0.15537]
[1768845341218,0.91154198,3220.7,3219.7,0.15537]
[1768845341425,0.91154198,3220.6,3219.7,0.15537]
[1768845341727,0.00337949,3220.8,3219.7,0.15537]
[1768845341918,0.91153477,3220.7,3219.7,0.15537]
[1768845342120,0.91153477,3220.6,3219.7,0.15537]
[1768845342321,0.00337949,3220.8,3219.7,0.15537]
[1768845342619,0.91150662,3220.7,3219.7,0.15537]
[1768845342819,0.91150662,3220.6,3219.7,0.15537]
[1768845343028,0.00337949,3220.8,3219.7,0.15537]
[1768845343229,0.91147673,3220.7,3219.7,0.15537]
[1768845343428,0.91147673,3220.6,3219.7,0.15537]
[1768845343620,0.00337949,3220.8,3219.7,0.15537]
[1768845343819,0.91147662,3220.7,3219.7,0.15537]
[1768845344021,0.91147662,3220.6,3219.7,0.15537]
[1768845344223,0.00337949,3220.8,3219.7,0.15537]
[1768845344420,0.91147285,3220.7,3219.7,0.15537]
[1768845344631,0.91147285,3220.6,3219.7,0.15537]
[1768845344822,0.00337949,3220.8,3219.7,0.15537]
[1768845345023,0.91147499,3220.7,3219.7,0.15537]
[1768845345222,0.91147499,3220.6,3219.7,0.15537]
[1768845345431,0.00337949,3220.8,3219.7,0.15537]
[1768845345625,0.91148267,3220.7,3219.7,0.15537]
[1768845345825,0.91148267,3220.6,3219.7,0.15537]
[1768845346022,0.00337949,3220.8,3219.7,0.15537]
[1768845346222,0.91148075,3220.7,3219.7,0.15537]
[1768845346426,0.91148075,3220.6,3219.7,0.15537]
[1768845346627,0.00337949,3220.8,3219.7,0.15537]
[1768845346831,0.91149789,3220.7,3219.7,0.15537]
[1768845347027,0.91149789,3220.6,3219.7,0.15537]
[1768845347324,0.00337949,3220.8,3219.7,0.15537]
[1768845347526,0.91153167,3220.7,3219.7,0.15537]
[1768845347730,0.91153167,3220.6,3219.7,0.15537]
[1768845347939,0.00337949,3220.8,3219.7,0.15537]
[1768845348133,0.91153244,3220.7,3219.7,0.15537]
[1768845348334,0.91153244,3220.6,3219.7,0.15537]
[1768845348525,0.00337949,3220.8,3219.7,0.15537]
[1768845348725,0.9133256,3220.7,3219.7,0.15537]
[1768845348926,0.9133256,3220.6,3219.7,0.15537]
[1768845349126,0.00337949,3220.8,3219.7,0.15537]
[1768845349426,0.91334736,3220.7,3219.7,0.15537]
[1768845349626,0.91334736,3220.6,3219.7,0.15537]
[1768845349826,0.00337949,3220.8,3219.7,0.15537]
[1768845350027,0.91334388,3220.7,3219.7,0.15537]
[1768845350227,0.91334388,3220.6,3219.7,0.15537]
[1768845350429,0.00337949,3220.8,3219.7,0.15537]
[1768845350628,0.91338726,3220.7,3219.7,0.15537]
[1768845350928,0.91338726,3220.6,3219.7,0.15537]
[1768845351128,0.00337949,3220.8,3219.7,0.15537]
[1768845351338,0.9133735,3220.7,3219.7,0.15537]
[1768845351537,0.9133735,3220.6,3219.7,0.15537]
[1768845351836,0.14743312,3220.8,3219.7,0.15537]
[1768845352035,0.91334892,3220.7,3219.7,0.15537]
[1768845352232,0.91334892,3220.6,3219.7,0.15537]
[1768845352535,0.14743312,3220.8,3219.7,0.15537]
[1768845352836,0.91338996,3220.7,3219.7,0.15537]
[1768845353035,0.91338996,3220.6,3219.7,0.15537]
[1768845353237,0.14743312,3220.8,3219.7,0.15537]
[1768845353430,0.91341729,3220.7,3219.7,0.15537]
[1768845353630,1.04623773,3220.6,3219.7,0.15537]
[1768845353835,0.13282044,3220.6,3219.7,0.15537]
[1768845360342,0.91405136,3220.5,3219.7,0.15537]
[1768845360641,0.13282044,3220.6,3219.7,0.15537]
[1768845360842,0.91405139,3220.5,3219.7,0.15537]
[1768845361046,0.13282044,3220.6,3219.7,0.15537]
[1768845361742,1.42012544,3220.4,3219.1,40.9554]
[1768845361945,1.42012544,3220.4,3219.2,3.301]
[1768845364962,0.13282044,3220.4,3219.2,4.588305]
[1768845365168,0.13282044,3220.4,3219.3,0.15539]
[1768845365463,0.13282044,3220.3,3219.3,0.15539]
[1768845375866,0.13282044,3220.3,3219.2,3.301]
[1768845376067,0.13282044,3220.1,3218.8,0.00240187]
[1768845376278,0.13282044,3219.9,3218.8,3.34140187]
[1768845384371,0.13255841,3220.3,3218.8,3.34140187]
[1768845384679,0.91243536,3220.2,3218.8,3.34140187]
[1768845384867,0.91243536,3220.1,3218.8,3.34140187]
[1768845385068,0.13255841,3220.3,3218.8,3.34140187]
[1768845385277,0.91243744,3220.2,3218.8,3.34140187]
[1768845385481,0.91243744,3220.1,3218.8,3.34140187]
[1768845385781,0.13255841,3220.3,3218.8,3.34140187]
[1768845385971,1.04488326,3220.2,3218.8,3.34140187]
[1768845386172,0.91232485,3220.1,3218.8,3.34140187]
[1768845386381,0.13255841,3220.2,3218.8,3.34140187]
[1768845386687,0.91229454,3220.1,3218.8,3.34140187]
[1768845386873,0.13255841,3220.2,3218.8,3.34140187]
[1768845387070,0.9123201,3220.1,3218.8,3.34140187]
[1768845387278,0.13255841,3220.2,3218.8,3.34140187]
[1768845387478,0.91232999,3220.1,3218.8,3.34140187]
[1768845387777,0.13255841,3220.2,3218.8,3.34140187]
[1768845388075,0.91232999,3220.1,3218.8,3.34140187]
[1768845388268,0.13255841,3220.2,3218.8,3.34140187]
[1768845388469,0.9123588,3220.1,3218.8,3.34140187]
[1768845388667,0.13255841,3220.2,3218.8,3.34140187]
[1768845388872,0.91235856,3220.1,3218.8,3.34140187]
[1768845389071,0.13255841,3220.2,3218.8,3.34140187]
[1768845389265,0.91239019,3220.1,3218.8,3.34140187]
[1768845389468,0.13255841,3220.2,3218.8,3.34140187]
[1768845389680,0.91239487,3220.1,3218.8,3.34140187]
[1768845389879,0.13255841,3220.2,3218.8,3.34140187]
[1768845390083,0.91240444,3220.1,3218.8,3.34140187]
[1768845390282,0.13255841,3220.2,3218.8,3.34140187]
[1768845390578,1.04497869,3220.1,3218.8,3.34140187]
[1768845390774,0.13255841,3220.1,3218.8,3.34140187]
[1768845394186,0.13255841,3220.1,3218.8,3.49682187]
[1768845397882,0.15533,3220.6,3219.1,0.28774354]
[1768845398086,0.91298297,3220.5,3219.1,0.28774354]
[1768845398381,0.91298297,3220.4,3219.1,0.28774354]
[1768845398681,0.91298297,3220.3,3219.1,0.28774354]
[1768845398881,0.91298297,3220.2,3219.1,0.28774354]
[1768845399088,0.13255841,3220.6,3219.1,0.1554]
[1768845399288,1.37276101,3220.5,3219.1,0.1554]
[1768845399482,0.91309036,3220.4,3219.1,0.1554]
[1768845400185,1.04564877,3220.4,3219.1,0.1554]
[1768845400484,0.91309036,3220.3,3219.1,0.1554]
[1768845409094,0.91309036,3220.3,3219.2,0.1554]
[1768845409291,0.91309036,3220.2,3219.2,0.1554]
[1768845409492,1.80566683,3220.7,3219.2,0.1554]
[1768845409692,1.24038697,3220.6,3219.2,0.1554]
[1768845409892,1.24038697,3220.5,3219.2,0.1554]
[1768845410092,0.91297572,3220.4,3219.2,0.1554]
[1768845410389,0.91297572,3220.3,3219.2,0.1554]
[1768845410591,0.91297572,3220.2,3219.2,0.1554]
[1768845410791,0.13039913,3220.6,3219.2,0.1554]
[1768845410992,1.24024279,3220.5,3219.2,0.1554]
[1768845411291,0.91286888,3220.4,3219.2,0.1554]
[1768845411489,0.91286888,3220.3,3219.2,0.1554]
[1768845411697,0.91286888,3220.2,3219.2,0.1554]
[1768845411898,0.13039913,3220.6,3219.2,0.1554]
[1768845412194,0.13039913,3220.4,3219.2,0.1554]
[1768845412397,0.91285848,3220.3,3219.2,0.1554]
[1768845414697,1.04933467,3220.3,3219.2,0.1554]
[1768845414900,0.91285848,3220.2,3219.3,0.15539]
[1768845415089,0.13985568,3220.8,3219.4,0.15539]
[1768845415297,1.24031227,3220.7,3219.4,0.15539]
[1768845415489,1.24031227,3220.6,3219.4,0.15539]
[1768845415686,0.9129126,3220.5,3219.4,0.15539]
[1768845415890,0.9129126,3220.4,3219.4,0.15539]
[1768845416193,0.9129126,3220.3,3219.4,0.15539]
[1768845416485,0.9129126,3220.2,3219.4,0.15539]
[1768845416688,0.13647619,3220.7,3219.4,0.15539]
[1768845416885,1.37680568,3220.6,3219.4,0.15539]
[1768845417098,0.91292443,3220.5,3219.4,0.15539]
[1768845417299,0.91292443,3220.4,3219.4,0.15539]
[1768845417500,0.91292443,3220.3,3219.4,0.15539]
[1768845417701,0.91292443,3220.2,3219.4,0.15539]
[1768845417903,0.13647619,3220.6,3219.4,0.15539]
[1768845418102,0.91291434,3220.5,3219.4,0.15539]
[1768845418302,0.91291434,3220.4,3219.4,0.15539]
[1768845418500,0.91291434,3220.3,3219.4,0.15539]
[1768845418803,0.91291434,3220.2,3219.4,0.15539]
[1768845419012,0.13647619,3220.6,3219.4,0.15539]
[1768845419216,0.91292043,3220.5,3219.4,0.15539]
[1768845419415,0.91292043,3220.4,3219.4,0.15539]
[1768845419617,0.91292043,3220.3,3219.4,0.15539]
[1768845419817,0.91292043,3220.2,3219.4,0.15539]
[1768845420017,0.13647619,3220.6,3219.4,0.15539]
[1768845420217,1.24034098,3220.5,3219.4,0.15539]
[1768845420420,0.91293157,3220.4,3219.4,0.15539]
[1768845420615,0.91293157,3220.3,3219.4,0.15539]
[1768845420913,0.91293157,3220.2,3219.4,0.15539]
[1768845421116,0.13647619,3220.5,3219.4,0.15539]
[1768845421313,0.91292324,3220.4,3219.4,0.15539]
[1768845421515,0.91292324,3220.3,3219.4,0.15539]
[1768845421713,0.91292324,3220.2,3219.4,0.15539]
[1768845422018,0.13647619,3220.5,3219.4,0.15539]
[1768845422220,0.91292823,3220.4,3219.4,0.15539]
[1768845422518,0.91292823,3220.3,3219.4,0.15539]
[1768845422817,0.91292823,3220.2,3219.4,0.15539]
[1768845423018,0.13647619,3220.5,3219.4,0.15539]
[1768845423218,0.91297247,3220.4,3219.4,0.15539]
[1768845423418,0.91297247,3220.3,3219.4,0.15539]
[1768845423718,0.91297247,3220.2,3219.4,0.15539]
[1768845424020,0.13647619,3220.4,3219.4,0.15539]
[1768845424214,0.91301201,3220.3,3219.4,0.15539]
[1768845424416,0.91301201,3220.2,3219.4,0.15539]
[1768845424714,0.13647619,3220.4,3219.4,0.15539]
[1768845424915,0.91310016,3220.3,3219.4,0.15539]
[1768845425111,0.91310016,3220.2,3219.4,0.15539]
[1768845425314,0.91310016,3220.1,3219.4,0.15539]
[1768845425610,0.13647619,3220.4,3219.4,0.15539]
[1768845425922,0.91316954,3220.3,3219.4,0.15539]
[1768845426120,0.91316954,3220.2,3219.4,0.15539]
[1768845426322,0.91316954,3220.1,3219.4,0.15539]
[1768845426517,0.13647619,3220.4,3219.4,0.15539]
[1768845426712,1.04973101,3220.3,3219.4,0.15539]
[1768845426919,0.13647619,3220.1,3218.8,3.49681187]
[1768845427224,0.91332857,3220.0,3218.8,3.49681187]
[1768845427425,0.13647619,3220.1,3218.8,3.49681187]
[1768845427615,0.91332796,3220.0,3218.8,3.49681187]
[1768845427815,0.13647619,3220.1,3218.8,3.49681187]
[1768845428015,0.91332122,3220.0,3218.8,3.49681187]
[1768845428223,0.13647619,3220.1,3218.8,3.49681187]
[1768845428524,0.91331419,3220.0,3218.8,3.49681187]
[1768845428726,0.13647619,3220.1,3218.8,3.49681187]
[1768845429025,0.91332162,3220.0,3218.9,1.28737564]
[1768845429322,0.13647619,3220.1,3218.9,1.28737564]
[1768845429522,0.91331036,3220.0,3218.9,1.28737564]
[1768845429717,0.13647619,3220.1,3218.9,1.28737564]
[1768845429918,0.91331038,3220.0,3218.9,1.28737564]
[1768845430120,0.13647619,3220.1,3218.9,1.28737564]
[1768845430322,0.913301,3220.0,3218.8,1.44518751]
[1768845430515,0.13647619,3220.1,3218.8,1.44518751]
[1768845430715,0.91329778,3220.0,3218.8,1.44518751]
[1768845431016,0.13647619,3220.1,3218.8,1.44518751]
[1768845431212,1.04977302,3220.0,3218.8,1.44518751]
[1768845431520,1.28737564,3219.5,3218.8,0.15781187]
[1768845431720,0.13647619,3219.6,3218.8,0.15781187]
[1768845434124,0.13647619,3219.5,3218.8,0.15781187]
[1768845446430,0.13647619,3219.5,3218.8,0.00121195]
[1768845454138,0.14287429,3219.4,3218.3,0.15544]
[1768845454643,0.14287429,3219.4,3218.3,1.44281564]
[1768845455144,0.14287429,3219.4,3218.3,1.44607662]
[1768845455739,0.14287429,3219.4,3218.3,0.15870098]
[1768845455949,0.14287429,3219.4,3218.4,1.28737564]
[1768845458958,0.14287429,3219.4,3218.4,0.15544]
[1768845460347,1.40540514,3221.6,3219.6,1.28737564]
[1768845460549,1.28737564,3221.4,3220.0,1.28737564]
[1768845462252,0.14008817,3220.9,3220.0,1.28737564]
[1768845467354,0.14008817,3220.9,3220.0,1.44273564]
[1768845467968,0.14008817,3220.9,3220.2,1.28737564]
[1768845469355,0.14374058,3220.9,3220.2,1.28737564]
[1768845469853,0.14374058,3220.9,3220.4,1.28737564]
[1768845470059,1.44264564,3221.8,3220.4,1.28737564]
[1768845470254,0.90333329,3221.7,3220.4,1.28737564]
[1768845470452,2.19070893,3221.6,3220.4,1.28737564]
[1768845470652,1.28737564,3221.6,3220.4,1.28737564]
[1768845471057,1.28997745,3221.6,3220.4,1.28737564]
[1768845472061,0.14008817,3221.5,3220.4,1.28737564]
[1768845477660,0.14008817,3221.5,3220.7,1.28737564]
[1768845477858,0.14008817,3221.5,3220.7,1.28989681]
[1768845478256,0.00260181,3221.6,3220.7,1.28989681]
[1768845481064,0.00260181,3221.6,3220.7,0.00252117]
[1768845481264,0.14474924,3221.6,3220.7,0.00252117]
[1768845489169,1.04806905,3221.5,3220.7,0.00252117]
[1768845489364,0.14214743,3221.5,3220.7,0.00252117]
[1768845490174,1.0497801,3221.4,3220.7,0.00252117]
[1768845490373,0.90763267,3221.3,3220.7,0.00252117]
[1768845490573,0.14214743,3221.4,3220.7,0.00252117]
[1768845490779,0.90762209,3221.3,3220.7,0.00252117]
[1768845491073,0.14214743,3221.4,3220.7,0.00252117]
[1768845491373,0.90763494,3221.3,3220.7,0.00252117]
[1768845491566,0.14214743,3221.4,3220.7,0.00252117]
[1768845491865,0.90764095,3221.3,3220.7,0.00252117]
[1768845492066,0.14214743,3221.4,3220.7,0.00252117]
[1768845492268,0.90765624,3221.3,3220.7,0.00252117]
[1768845492567,0.14214743,3221.4,3220.7,0.00252117]
[1768845492766,0.90766252,3221.3,3220.7,0.00252117]
[1768845492971,0.14214743,3221.4,3220.7,0.00252117]
[1768845493161,0.90766172,3221.3,3220.7,0.00252117]
[1768845493364,0.14214743,3221.4,3220.7,0.00252117]
[1768845493567,0.90768482,3221.3,3220.7,0.00252117]
[1768845493872,0.14214743,3221.4,3220.7,0.00252117]
[1768845494072,0.90768477,3221.3,3220.7,0.00252117]
[1768845494373,0.14214743,3221.4,3220.7,0.00252117]
[1768845494568,0.90770709,3221.3,3220.7,0.00252117]
[1768845494768,0.14214743,3221.4,3220.7,0.00252117]
[1768845495068,0.90770709,3221.3,3220.7,0.00252117]
[1768845495266,0.14214743,3221.4,3220.7,0.00252117]
[1768845495470,0.90775134,3221.3,3220.7,0.00252117]
[1768845495662,0.14214743,3221.4,3220.7,0.00252117]
[1768845495861,0.90775058,3221.3,3220.7,0.00252117]
[1768845496064,0.14214743,3221.4,3220.7,0.00252117]
[1768845496274,0.90773291,3221.3,3220.7,0.00252117]
[1768845496571,0.14214743,3221.4,3220.7,0.00252117]
[1768845496871,0.90774322,3221.3,3220.7,0.00252117]
[1768845497073,0.14214743,3221.4,3220.7,0.00252117]
[1768845497271,0.90778013,3221.3,3220.7,0.00252117]
[1768845497472,0.14214743,3221.4,3220.7,0.00252117]
[1768845497676,0.90778712,3221.3,3220.7,0.00252117]
[1768845497868,0.14214743,3221.1,3220.7,0.00252117]
[1768845498177,0.14214743,3221.1,3220.2,0.15535]
[1768845498967,0.14214743,3221.1,3220.2,0.15808894]
[1768845499468,0.14214743,3221.5,3220.2,0.15808894]
[1768845499669,0.90756216,3221.4,3220.2,0.15808894]
[1768845499875,0.90756216,3221.3,3220.2,0.15808894]
[1768845500074,0.90756216,3221.2,3220.2,0.15808894]
[1768845500275,0.14214743,3221.5,3220.2,0.15808894]
[1768845500477,0.90757851,3221.4,3220.2,0.15808894]
[1768845500677,0.90757851,3221.3,3220.2,0.15808894]
[1768845500877,0.90757851,3221.2,3220.2,0.15808894]
[1768845501179,0.14214743,3221.5,3220.2,0.15808894]
[1768845501375,0.90760263,3221.4,3220.2,0.15808894]
[1768845501675,0.90760263,3221.3,3220.2,1.4444102]
[1768845501872,0.14214743,3221.5,3220.2,1.4444102]
[1768845502072,0.90764589,3221.4,3220.2,1.4444102]
[1768845502274,0.90764589,3221.3,3220.2,1.4444102]
[1768845502464,0.14214743,3221.5,3220.2,1.4444102]
[1768845502665,0.90763257,3221.4,3220.2,1.4444102]
[1768845502877,0.90763257,3221.3,3220.2,1.4444102]
[1768845503073,0.14214743,3221.5,3220.2,1.4444102]
[1768845503371,0.90765899,3221.4,3220.2,1.4444102]
[1768845503570,0.90765899,3221.3,3220.2,1.4444102]
[1768845503773,0.14214743,3221.5,3220.2,1.4444102]
[1768845504072,0.90767512,3221.4,3220.2,1.4444102]
[1768845504379,0.90767512,3221.3,3220.2,1.4444102]
[1768845504676,0.14214743,3221.5,3220.2,1.4444102]
[1768845504876,0.90772203,3221.4,3220.2,1.4444102]
[1768845505075,0.90772203,3221.3,3220.2,1.4444102]
[1768845505274,0.14214743,3221.5,3220.2,1.4444102]
[1768845505581,0.90777696,3221.4,3220.2,1.4444102]
[1768845505774,0.90777696,3221.3,3220.2,1.4444102]
[1768845506079,0.14214743,3221.5,3220.2,1.4444102]